bitfinex/quotes_ETHUSD_20240701
["timestamp","ask_amount","ask_price","bid_price","bid_amount"]
[1719869759466,0.26636219,3461.3,3461.2,3.0]
[1719869759969,0.56392143,3461.3,3461.2,3.0]
[1719869767787,0.56392143,3461.3,3461.2,5.3359]
[1719869776873,0.56392143,3461.3,3461.2,3.0]
[1719869780301,1.18993711,3461.3,3461.2,3.0]
[1719869783169,1.18995291,3461.3,3461.2,3.0]
[1719869783671,1.18999012,3461.3,3461.2,3.0]
[1719869784706,0.56392143,3461.3,3461.2,3.0]
[1719869785000,1.18999456,3461.3,3461.2,3.0]
[1719869785368,4.07907456,3461.3,3461.2,3.0]
[1719869785591,4.95884302,3461.3,3461.2,3.0]
[1719869786484,4.95883334,3461.3,3461.2,3.0]
[1719869789205,4.07906488,3461.3,3461.2,3.0]
[1719869789718,4.07906727,3461.3,3461.2,3.0]
[1719869791425,1.18998727,3461.3,3461.2,3.0]
[1719869793009,1.18998491,3461.3,3461.2,3.0]
[1719869796329,0.56392143,3461.3,3461.2,3.0]
[1719869796523,1.18998841,3461.3,3461.2,3.0]
[1719869796722,0.56392143,3461.3,3461.2,3.0]
[1719869796907,1.18998983,3461.3,3461.2,3.0]
[1719869802708,1.18996281,3461.3,3461.2,3.0]
[1719869803213,1.18996281,3461.3,3461.2,5.4891]
[1719869805243,1.18996281,3461.3,3461.2,6.615863]
[1719869805549,0.56392143,3461.3,3461.2,6.615863]
[1719869806114,1.18994873,3461.3,3461.2,6.615863]
[1719869806326,0.56392143,3461.3,3461.2,6.615863]
[1719869807328,1.18994019,3461.3,3461.2,6.615863]
[1719869809117,1.18994019,3461.3,3461.2,9.505033]
[1719869809313,0.56392143,3461.3,3461.2,9.505033]
[1719869822163,0.56392143,3461.3,3461.2,7.015933]
[1719869830495,0.56392143,3461.3,3461.2,4.126763]
[1719869832555,1.18994378,3461.3,3461.2,4.126763]
[1719869834591,1.19016173,3461.3,3461.2,4.126763]
[1719869837760,1.19021037,3461.3,3461.2,4.126763]
[1719869837966,1.19021037,3461.3,3461.2,3.0]
[1719869840997,0.56392143,3461.3,3461.2,3.0]
[1719869841496,1.19018306,3461.3,3461.2,3.0]
[1719869844321,0.56384896,3461.3,3461.2,3.0]
[1719869844500,1.19012567,3461.3,3461.2,3.0]
[1719869844808,0.56384896,3461.3,3461.2,3.0]
[1719869845007,1.19012971,3461.3,3461.2,3.0]
[1719869845187,1.81640629,3461.3,3461.2,3.0]
[1719869846505,1.81640629,3461.3,3461.2,5.4612]
[1719869847608,1.19012971,3461.3,3461.2,5.4612]
[1719869847812,1.81640564,3461.3,3461.2,5.4612]
[1719869854179,1.19012971,3461.3,3461.2,5.4612]
[1719869854384,1.81640899,3461.3,3461.2,5.4612]
[1719869856391,1.81642128,3461.3,3461.2,5.4612]
[1719869857814,1.81642692,3461.3,3461.2,5.4612]
[1719869858018,1.190142,3461.3,3461.2,5.4612]
[1719869858220,1.81642137,3461.3,3461.2,5.4612]
[1719869858409,1.81642137,3461.3,3461.2,6.14908562]
[1719869858612,1.81642137,3461.3,3461.2,9.03825562]
[1719869859921,1.19014062,3461.3,3461.2,9.03825562]
[1719869860914,1.1901418,3461.3,3461.2,9.03825562]
[1719869863891,0.56386125,3461.3,3461.2,9.03825562]
[1719869864091,1.19013773,3461.3,3461.2,9.03825562]
[1719869867397,1.19014471,3461.3,3461.2,9.03825562]
[1719869870610,0.56386125,3461.3,3461.2,9.03825562]
[1719869870833,1.19014715,3461.3,3461.2,9.03825562]
[1719869871028,0.56386125,3461.3,3461.2,9.03825562]
[1719869885754,0.55578133,3461.5,3461.4,2.88899]
[1719869890274,0.28915031,3461.5,3461.4,2.88899]
[1719869890481,0.728,3462.0,3461.6,3.0]
[1719869890775,0.89273201,3461.9,3461.6,3.0]
[1719869890975,0.26651433,3461.8,3461.6,3.0]
[1719869891148,0.26651433,3461.7,3461.6,3.0]
[1719869891774,0.26651433,3461.9,3461.6,3.0]
[1719869892948,2.09611433,3461.9,3461.6,3.0]
[1719869893148,0.26651433,3461.8,3461.6,3.0]
[1719869893349,0.26651433,3461.8,3461.6,5.88883]
[1719869893585,0.26651433,3461.7,3461.6,5.88883]
[1719869893876,0.26651433,3462.0,3461.6,5.88883]
[1719869894081,0.62620984,3461.9,3461.6,5.88883]
[1719869894266,0.26651433,3461.8,3461.6,5.88883]
[1719869894656,0.26651433,3461.7,3461.6,5.88883]
[1719869895267,0.26651433,3462.0,3461.6,5.88883]
[1719869895474,0.89272577,3461.9,3461.6,5.88883]
[1719869895684,0.26651433,3461.8,3461.6,5.88883]
[1719869895852,0.26651433,3461.7,3461.6,5.88883]
[1719869896054,0.26651433,3462.0,3461.6,5.88883]
[1719869896288,0.6262138,3461.9,3461.6,5.88883]
[1719869896486,0.26651433,3461.8,3461.6,5.88883]
[1719869896667,0.26651433,3461.7,3461.6,5.88883]
[1719869896873,2.88834,3462.2,3461.7,2.3329]
[1719869897068,1.39272742,3462.1,3461.7,2.3329]
[1719869897264,0.89271917,3462.0,3461.7,2.3329]
[1719869897459,0.2665021,3461.9,3461.7,2.3329]
[1719869897684,0.2665021,3461.8,3461.7,2.3329]
[1719869898167,0.2665021,3462.1,3461.7,2.3329]
[1719869898373,0.89270044,3462.0,3461.7,2.3329]
[1719869898561,0.2665021,3461.9,3461.7,2.3329]
[1719869898775,0.2665021,3461.8,3461.7,2.3329]
[1719869898968,2.88834,3462.2,3461.7,2.3329]
[1719869898969,0.2665021,3462.1,3461.7,2.3329]
[1719869899376,0.62616381,3462.0,3461.7,2.3329]
[1719869899588,0.2665021,3461.9,3461.7,2.3329]
[1719869899988,0.2665021,3461.8,3461.7,2.3329]
[1719869900171,0.2665021,3462.1,3461.7,2.3329]
[1719869900385,0.89268799,3462.0,3461.6,5.88883]
[1719869900603,0.2665021,3461.9,3461.6,5.88883]
[1719869900801,0.2665021,3461.8,3461.6,5.88883]
[1719869901086,0.2665021,3461.7,3461.6,5.88883]
[1719869901287,0.2665021,3462.0,3461.6,5.88883]
[1719869903384,0.28922713,3461.9,3461.6,5.88883]
[1719869903574,0.2665021,3461.8,3461.6,5.88883]
[1719869903963,0.28923096,3461.7,3461.6,5.88883]
[1719869904164,0.2665021,3461.7,3461.6,5.88883]
[1719869904385,0.55573306,3461.7,3461.6,5.88883]
[1719869904599,0.2665021,3461.7,3461.6,5.88883]
[1719869904794,0.55572346,3461.7,3461.6,5.88883]
[1719869912413,0.55572346,3461.7,3461.6,6.999901]
[1719869922909,0.55572346,3461.7,3461.6,4.111071]
[1719869924920,0.55572346,3461.7,3461.6,6.999901]
[1719869928217,1.18181934,3461.7,3461.6,6.999901]
[1719869928655,0.55572346,3461.7,3461.6,6.999901]
[1719869929009,1.18181977,3461.7,3461.6,6.999901]
[1719869929416,1.18181977,3461.7,3461.6,9.472301]
[1719869931928,0.55572346,3461.7,3461.6,9.472301]
[1719869932127,1.18182101,3461.7,3461.6,9.472301]
[1719869933348,0.89259965,3461.7,3461.6,9.472301]
[1719869935019,0.89259965,3461.7,3461.6,6.999901]
[1719869935225,0.2665021,3461.7,3461.6,6.999901]
[1719869935393,0.62605404,3461.7,3461.6,6.999901]
[1719869935598,0.2665021,3461.7,3461.6,6.999901]
[1719869935996,0.62606321,3461.7,3461.6,6.999901]
[1719869936304,0.89256531,3461.7,3461.6,6.999901]
[1719869937618,0.2665021,3461.7,3461.6,6.999901]
[1719869938235,0.2665021,3462.2,3461.6,6.999901]
[1719869938453,0.89251534,3462.1,3461.6,5.88883]
[1719869938742,0.89251556,3462.0,3461.6,5.88883]
[1719869938943,0.62601346,3461.9,3461.6,5.88883]
[1719869939136,0.28924247,3461.9,3461.6,5.88883]
[1719869939316,3.61627,3462.3,3461.6,5.88883]
[1719869939516,0.28924247,3461.8,3461.6,5.88883]
[1719869939740,3.61627,3462.3,3461.6,5.88883]
[1719869939936,0.28924247,3461.7,3461.6,5.88883]
[1719869940143,1.8296,3462.2,3461.6,5.88883]
[1719869940339,0.28924247,3461.7,3461.6,5.88883]
[1719869940514,1.8296,3462.2,3461.6,5.88883]
[1719869940515,1.8296,3462.2,3461.6,7.001861]
[1719869940720,1.41523872,3462.1,3461.6,5.88883]
[1719869940939,0.62601918,3462.0,3461.6,5.88883]
[1719869941137,0.6260254,3461.9,3461.6,5.88883]
[1719869941326,0.28924247,3461.9,3461.6,5.88883]
[1719869941527,1.8296,3462.2,3461.6,5.88883]
[1719869941731,0.28924247,3461.8,3461.6,5.88883]
[1719869941962,1.8296,3462.2,3461.6,7.001861]
[1719869942119,0.28924247,3461.7,3461.6,5.88883]
[1719869942319,1.8296,3462.2,3461.6,5.88883]
[1719869942520,0.28924247,3461.7,3461.6,5.88883]
[1719869942725,1.8296,3462.2,3461.6,5.88883]
[1719869942934,0.28924247,3461.7,3461.6,5.88883]
[1719869943253,1.8296,3462.2,3461.6,7.001861]
[1719869943451,0.28924247,3461.7,3461.6,5.88883]
[1719869943662,1.8296,3462.2,3461.6,5.88883]
[1719869943954,1.12597733,3462.1,3461.6,5.88883]
[1719869944123,0.62599341,3462.0,3461.6,5.88883]
[1719869944324,1.8296,3462.2,3461.6,5.88883]
[1719869944529,0.28924247,3461.9,3461.6,5.88883]
[1719869944756,0.6259997,3461.8,3461.6,5.88883]
[1719869944917,0.28924247,3461.8,3461.6,5.88883]
[1719869945122,1.8296,3462.2,3461.6,7.001861]
[1719869945352,0.28924247,3461.7,3461.6,5.88883]
[1719869945658,1.8296,3462.2,3461.6,5.88883]
[1719869945849,0.28924247,3461.7,3461.6,5.88883]
[1719869946055,1.8296,3462.2,3461.6,5.88883]
[1719869946260,0.28924247,3461.7,3461.6,5.88883]
[1719869946466,1.8296,3462.2,3461.6,7.001861]
[1719869946767,1.12599056,3462.1,3461.6,5.88883]
[1719869946972,0.62600009,3462.0,3461.6,5.88883]
[1719869947322,0.91524256,3461.9,3461.6,5.88883]
[1719869947567,0.28924247,3461.9,3461.6,5.88883]
[1719869947749,4.71793,3462.2,3461.6,5.88883]
[1719869947750,0.62599417,3461.8,3461.6,5.88883]
[1719869947950,0.28924247,3461.8,3461.6,5.88883]
[1719869948149,4.71793,3462.2,3461.6,5.88883]
[1719869948360,0.28924247,3461.7,3461.6,5.88883]
[1719869948539,4.71793,3462.2,3461.6,5.88883]
[1719869948734,0.28924247,3461.7,3461.6,3.0]
[1719869948967,0.62598705,3461.7,3461.6,3.0]
[1719869949260,0.28924247,3461.7,3461.6,3.0]
[1719869949454,0.91522308,3461.7,3461.6,3.0]
[1719869949650,0.62598388,3461.7,3461.6,3.0]
[1719869949857,0.28922519,3461.7,3461.6,3.0]
[1719869950057,0.9152185,3461.7,3461.6,3.0]
[1719869950235,0.62599331,3461.7,3461.6,3.0]
[1719869950442,0.9152185,3461.7,3461.6,3.0]
[1719869950669,0.28922519,3461.7,3461.6,3.0]
[1719869950865,0.9152071,3461.7,3461.6,3.0]
[1719869954061,0.28922519,3461.7,3461.6,3.0]
[1719869954240,0.91521958,3461.7,3461.6,3.0]
[1719869954441,0.62599439,3461.7,3461.6,3.0]
[1719869954636,0.28922519,3461.7,3461.6,3.0]
[1719869954867,0.91521958,3461.7,3461.6,3.0]
[1719869955067,0.62599439,3461.7,3461.6,3.0]
[1719869955252,0.28922519,3461.7,3461.6,3.0]
[1719869955447,0.91521958,3461.7,3461.6,3.0]
[1719869955655,0.62599439,3461.7,3461.6,3.0]
[1719869955854,0.28922519,3461.7,3461.6,3.0]
[1719869956244,0.62599439,3461.8,3461.6,3.0]
[1719869956539,0.91521958,3461.7,3461.6,3.0]
[1719869957679,0.91527478,3461.7,3461.6,3.0]
[1719869960774,0.28922519,3461.7,3461.6,3.0]
[1719869960957,0.62607838,3461.9,3461.6,3.0]
[1719869961140,0.28919639,3461.7,3461.6,3.0]
[1719869961342,0.62607852,3461.7,3461.6,3.0]
[1719869961542,0.28919639,3461.7,3461.6,3.0]
[1719869961746,0.62607852,3461.7,3461.6,3.0]
[1719869962049,0.28919639,3461.7,3461.6,3.0]
[1719869962467,0.62607852,3461.7,3461.6,3.0]
[1719869962675,0.28919639,3461.7,3461.6,3.0]
[1719869962882,0.91527491,3461.7,3461.6,3.0]
[1719869963088,0.62607852,3461.7,3461.6,3.0]
[1719869963295,0.91527491,3461.7,3461.6,3.0]
[1719869963968,0.28919639,3461.7,3461.6,3.0]
[1719869964168,0.62608854,3461.9,3461.6,3.0]
[1719869964381,0.28920216,3461.7,3461.6,3.0]
[1719869964560,0.62608854,3461.7,3461.6,3.0]
[1719869964755,0.9152907,3461.7,3461.6,3.0]
[1719869965492,0.91529406,3461.7,3461.6,3.0]
[1719869967395,0.9152854,3461.7,3461.6,3.0]
[1719869970792,0.91528691,3461.7,3461.6,3.0]
[1719869971805,0.28920216,3461.7,3461.6,3.0]
[1719869971971,0.62609802,3461.8,3461.6,3.0]
[1719869972165,0.91530211,3461.7,3461.6,3.0]
[1719869973970,0.28920409,3461.7,3461.6,3.0]
[1719869974295,0.62611804,3461.7,3461.6,3.0]
[1719869974497,0.28920409,3461.7,3461.6,3.0]
[1719869974800,2.88858,3461.9,3461.6,3.0]
[1719869974968,0.28920409,3461.7,3461.6,3.0]
[1719869975169,0.62598361,3461.7,3461.6,3.0]
[1719869975369,0.9151877,3461.7,3461.6,3.0]
[1719869976300,0.28920409,3461.7,3461.6,3.0]
[1719869976669,2.88858,3461.9,3461.6,3.0]
[1719869976869,0.28920409,3461.7,3461.6,3.0]
[1719869977070,2.88858,3461.9,3461.6,3.0]
[1719869977273,0.28920409,3461.7,3461.6,3.0]
[1719869977471,2.88858,3461.9,3461.6,3.0]
[1719869977687,0.28920409,3461.7,3461.6,3.0]
[1719869977911,2.88858,3461.9,3461.6,3.0]
[1719869978122,0.62593701,3461.8,3461.6,3.0]
[1719869978618,0.28920409,3461.7,3461.6,3.0]
[1719869978889,2.88858,3461.9,3461.6,3.0]
[1719869979107,0.62593127,3461.8,3461.6,3.0]
[1719869979414,0.28920409,3461.7,3461.6,3.0]
[1719869979616,2.88858,3461.9,3461.6,3.0]
[1719869979823,0.28920409,3461.7,3461.6,3.0]
[1719869980124,2.88858,3461.9,3461.6,3.0]
[1719869980289,0.62594099,3461.8,3461.6,3.0]
[1719869980491,2.88858,3461.9,3461.6,3.0]
[1719869980692,0.62593666,3461.8,3461.6,3.0]
[1719869981101,0.28920599,3461.7,3461.6,3.0]
[1719869981301,2.88858,3461.9,3461.6,3.0]
[1719869981506,0.62594484,3461.8,3461.6,3.0]
[1719869981709,0.91515083,3461.8,3461.6,3.0]
[1719869982015,0.28920599,3461.8,3461.6,3.0]
[1719869982199,0.62596748,3461.7,3461.6,3.0]
[1719869982634,0.91517347,3461.7,3461.6,3.0]
[1719869983941,0.91516817,3461.7,3461.6,3.0]
[1719869984307,0.91516952,3461.7,3461.6,3.0]
[1719869987021,0.28920599,3461.7,3461.6,3.0]
[1719869987221,0.6259527,3461.8,3461.6,3.0]
[1719869987425,0.91515869,3461.7,3461.6,3.0]
[1719869988335,0.91515869,3461.7,3461.6,5.4774]
[1719869990234,0.28920599,3461.7,3461.6,5.4774]
[1719869990423,0.62595254,3461.8,3461.6,3.0]
[1719869990740,0.91515663,3461.7,3461.6,3.0]
[1719869991950,3.80390663,3461.7,3461.6,3.0]
[1719869992253,4.3039607,3461.7,3461.6,3.0]
[1719869992409,3.80390663,3461.7,3461.6,3.0]
[1719869993554,3.17795409,3461.7,3461.6,3.0]
[1719869993769,3.80391532,3461.7,3461.6,3.0]
[1719869996721,3.17795409,3461.7,3461.6,3.0]
[1719869996960,3.80391183,3461.7,3461.6,3.0]
[1719869997154,3.17795409,3461.7,3461.6,3.0]
[1719869997367,3.8039117,3461.7,3461.6,3.0]
[1719869999287,3.8039117,3461.7,3461.1,5.25844]
[1719869999455,0.62595761,3461.6,3461.2,3.0]
[1719870000007,0.28920409,3461.5,3461.2,3.0]
[1719870000296,2.88875,3461.7,3461.2,3.0]
[1719870000516,0.28918103,3461.4,3461.3,5.21396]
[1719870000792,4.71835,3461.7,3461.2,3.0]
[1719870001003,0.62594621,3461.6,3461.2,3.0]
[1719870001373,0.5000869,3461.5,3461.2,3.0]
[1719870001572,0.62594621,3461.4,3461.2,3.0]
[1719870001777,0.62594621,3461.3,3461.2,3.0]
[1719870001958,0.62594621,3461.6,3461.2,3.0]
[1719870002149,0.62594621,3461.5,3461.2,3.0]
[1719870002350,2.88875,3461.7,3461.2,3.0]
[1719870002553,0.62596043,3461.6,3461.2,3.0]
[1719870003188,3.51480043,3461.6,3461.2,3.0]
[1719870003397,0.62596043,3461.5,3461.2,3.0]
[1719870005695,4.71844,3461.6,3461.2,3.0]
[1719870005855,0.62597635,3461.5,3461.2,3.0]
[1719870008270,0.28909657,3461.4,3460.9,2.434]
[1719870008468,0.28909657,3461.4,3460.9,5.434]
[1719870009390,0.28909657,3461.4,3460.9,6.628113]
[1719870010295,0.28909657,3461.4,3460.9,3.628113]
[1719870010667,0.28909657,3461.4,3460.9,6.628113]
[1719870011558,0.28909657,3461.4,3460.9,3.628113]
[1719870011788,0.28909657,3461.4,3460.9,6.628113]
[1719870012260,0.28909657,3461.4,3461.0,3.0]
[1719870012455,0.28909657,3461.4,3460.9,3.628113]
[1719870012678,0.28909657,3461.4,3460.9,6.628113]
[1719870013004,2.88917,3461.2,3460.8,3.0]
[1719870014101,2.88917,3461.2,3460.7,2.307]
[1719870014293,0.28908887,3461.1,3460.9,3.0]
[1719870014483,2.88917,3461.2,3460.9,3.0]
[1719870014684,0.28908887,3461.0,3460.9,3.0]
[1719870014885,2.88917,3461.2,3460.9,3.0]
[1719870015103,0.28908887,3461.0,3460.9,3.0]
[1719870015291,2.88917,3461.2,3460.9,3.0]
[1719870015493,0.28908887,3461.0,3460.9,3.0]
[1719870015805,0.28906967,3461.0,3460.9,3.0]
[1719870016006,2.88917,3461.2,3460.9,3.0]
[1719870016183,0.28906967,3461.0,3460.9,3.0]
[1719870016384,2.88917,3461.2,3460.9,3.0]
[1719870016587,0.28906967,3461.0,3460.9,3.819667]
[1719870016814,2.88885,3461.6,3460.9,8.27442]
[1719870017020,0.2890716,3461.0,3460.9,8.27442]
[1719870017170,2.88885,3461.6,3460.9,8.27442]
[1719870017505,0.91529284,3461.5,3460.9,8.27442]
[1719870017707,0.2890716,3461.5,3460.9,8.27442]
[1719870018584,0.2890716,3461.5,3461.1,2.2813]
[1719870018783,6.50566,3461.7,3461.3,3.0]
[1719870019108,0.2890716,3461.4,3461.3,3.0]
[1719870019304,2.88884,3461.6,3461.3,3.0]
[1719870019614,0.62620904,3461.5,3461.3,3.0]
[1719870019777,0.91528064,3461.5,3461.3,3.0]
[1719870020077,0.2890716,3461.5,3461.3,3.0]
[1719870029128,0.6262087,3461.4,3461.3,3.0]
[1719870029448,0.91524957,3461.4,3461.3,3.0]
[1719870030730,0.28904087,3461.4,3461.3,3.0]
[1719870031023,5.77766,3461.7,3461.3,3.0]
[1719870031191,3.722366,3461.6,3461.3,3.0]
[1719870031391,4.01141647,3461.6,3461.3,3.0]
[1719870033825,3.17789047,3461.6,3461.3,3.0]
[1719870034138,0.28905047,3461.6,3461.3,3.0]
[1719870034727,3.17791047,3461.6,3461.3,3.0]
[1719870040841,6.06680047,3461.6,3461.3,3.0]
[1719870041005,7.89640047,3461.6,3461.3,3.0]
[1719870041337,7.89642047,3461.6,3461.3,3.0]
[1719870041859,6.06682047,3461.6,3461.3,3.0]
[1719870044032,0.50008552,3461.5,3461.3,3.0]
[1719870044340,0.50008552,3461.4,3461.3,3.0]
[1719870044911,0.82052047,3461.4,3461.3,3.0]
[1719870045352,0.32043495,3461.4,3461.3,3.0]
[1719870045645,0.50008469,3461.5,3461.3,3.0]
[1719870045811,0.50008466,3461.4,3461.3,3.0]
[1719870046011,0.82051961,3461.4,3461.3,3.0]
[1719870048541,0.82051757,3461.4,3461.3,3.0]
[1719870049012,1.44678979,3461.4,3461.3,3.0]
[1719870052859,1.446789,3461.4,3461.3,3.0]
[1719870055495,0.82051884,3461.4,3461.3,3.0]
[1719870055635,1.44677422,3461.4,3461.3,3.0]
[1719870055825,0.94669033,3461.4,3461.3,3.0]
[1719870056067,1.44676257,3461.4,3461.3,3.0]
[1719870058621,1.44677385,3461.4,3461.3,3.0]
[1719870061043,0.82051909,3461.4,3461.3,3.0]
[1719870061283,1.4467798,3461.4,3461.3,3.0]
[1719870064463,1.44677876,3461.4,3461.3,3.0]
[1719870067768,1.44677695,3461.4,3461.3,3.0]
[1719870068270,1.44681489,3461.4,3461.3,3.0]
[1719870070881,1.44683124,3461.4,3461.3,3.0]
[1719870074198,1.44680341,3461.4,3461.3,3.0]
[1719870077549,0.94672162,3461.4,3461.3,3.0]
[1719870077800,1.44680997,3461.4,3461.3,3.0]
[1719870080798,0.32043495,3461.4,3461.3,3.0]
[1719870080890,1.4467685,3461.4,3461.3,3.0]
[1719870081226,0.82051624,3461.4,3461.3,3.0]
[1719870081515,1.44676805,3461.4,3461.3,3.0]
[1719870083832,0.32043495,3461.4,3461.3,3.0]
[1719870084051,0.82051316,3461.4,3461.3,3.0]
[1719870084202,1.12631915,3461.4,3461.3,3.0]
[1719870084404,1.44662541,3461.4,3461.3,3.0]
[1719870087328,1.44663195,3461.4,3461.3,3.0]
[1719870090625,1.44662263,3461.4,3461.3,3.0]
[1719870093767,0.32030626,3461.4,3461.3,3.0]
[1719870093977,0.50007965,3461.4,3461.3,3.0]
[1719870094265,0.3203024,3461.4,3461.3,3.0]
[1719870094866,0.32026206,3461.4,3461.3,3.0]
[1719870095068,0.94650222,3461.4,3461.3,3.0]
[1719870095239,1.12632041,3461.4,3461.3,3.0]
[1719870095444,1.44658247,3461.4,3461.3,3.0]
[1719870097791,1.44659622,3461.4,3461.3,3.0]
[1719870100897,0.94651717,3461.4,3461.3,3.0]
[1719870101059,1.44659859,3461.4,3461.3,3.0]
[1719870104333,1.44661421,3461.4,3461.3,3.0]
[1719870104445,1.44661421,3461.4,3461.3,5.3466]
[1719870105052,0.9465296,3461.4,3461.3,5.3466]
[1719870105373,0.9465296,3461.4,3461.3,6.17595675]
[1719870106357,0.9465296,3461.4,3461.3,9.06503675]
[1719870107581,0.94651014,3461.4,3461.3,9.06503675]
[1719870108127,0.94650576,3461.4,3461.3,9.06503675]
[1719870110694,0.94651135,3461.4,3461.3,9.06503675]
[1719870111772,0.32026206,3461.4,3461.3,9.06503675]
[1719870111973,3.61655,3462.0,3461.7,3.0]
[1719870112173,1.43580451,3461.9,3461.7,3.0]
[1719870112399,1.12629917,3461.8,3461.7,3.0]
[1719870113028,1.43580451,3461.8,3461.7,3.0]
[1719870113737,0.30950534,3461.8,3461.7,3.0]
[1719870113936,1.12631509,3461.8,3461.7,3.0]
[1719870114143,1.43582043,3461.8,3461.7,3.0]
[1719870117119,0.93576709,3461.8,3461.7,3.0]
[1719870117399,1.43581632,3461.8,3461.7,3.0]
[1719870120371,0.30950534,3461.8,3461.7,3.0]
[1719870120659,0.62629983,3461.8,3461.7,3.0]
[1719870120862,1.43587031,3461.8,3461.7,3.0]
[1719870121349,1.43585792,3461.8,3461.7,3.0]
[1719870122741,1.43584372,3461.8,3461.7,3.0]
[1719870126066,0.80959984,3461.8,3461.7,3.0]
[1719870126240,1.43587016,3461.8,3461.7,3.0]
[1719870129433,1.43593897,3461.8,3461.7,3.0]
[1719870132620,0.93592342,3461.8,3461.7,3.0]
[1719870132742,1.43597574,3461.8,3461.7,3.0]
[1719870132953,0.93592342,3461.8,3461.7,3.0]
[1719870133152,1.43597854,3461.8,3461.7,3.0]
[1719870135790,0.30954831,3461.8,3461.7,3.0]
[1719870135964,1.43593347,3461.8,3461.7,3.0]
[1719870139131,0.8096006,3461.8,3461.7,3.0]
[1719870139282,1.43595328,3461.8,3461.7,3.0]
[1719870142246,0.8095945,3461.8,3461.7,3.0]
[1719870142489,1.43594221,3461.8,3461.7,3.0]
[1719870145585,0.80959544,3461.8,3461.7,3.0]
[1719870145771,1.4359438,3461.8,3461.7,3.0]
[1719870146152,1.43594589,3461.8,3461.7,3.0]
[1719870148736,1.43595016,3461.8,3461.7,3.0]
[1719870149398,2.57032197,3461.8,3461.7,3.0]
[1719870152098,1.44392012,3461.8,3461.7,3.0]
[1719870152210,2.57054092,3461.8,3461.7,3.0]
[1719870154806,4.34759345,3461.8,3461.7,3.0]
[1719870154986,4.34764057,3461.8,3461.7,3.0]
[1719870155169,2.57057699,3461.8,3461.7,3.0]
[1719870155380,1.44392012,3461.8,3461.7,3.0]
[1719870155599,2.57055556,3461.8,3461.7,3.0]
[1719870158694,0.30954831,3461.8,3461.7,3.0]
[1719870158992,2.57071864,3461.8,3461.7,3.0]
[1719870159227,2.57071473,3461.8,3461.7,3.0]
[1719870162038,2.57074727,3461.8,3461.7,3.0]
[1719870163504,2.57078824,3461.8,3461.7,3.0]
[1719870164608,4.34834749,3461.8,3461.7,3.0]
[1719870164909,2.57078824,3461.8,3461.7,3.0]
[1719870165153,3.7218194,3461.8,3461.7,3.0]
[1719870165309,4.34861828,3461.8,3461.7,3.0]
[1719870168447,1.44408779,3461.8,3461.7,3.0]
[1719870168588,4.34857879,3461.8,3461.7,3.0]
[1719870171608,7.23724879,3461.8,3461.7,3.0]
[1719870171800,7.23698969,3461.8,3461.7,3.0]
[1719870172260,7.23698945,3461.8,3461.7,3.0]
[1719870174824,4.33275779,3461.8,3461.7,3.0]
[1719870175020,7.23697781,3461.8,3461.7,3.0]
[1719870178094,4.33275779,3461.8,3461.7,3.0]
[1719870178298,7.23669469,3461.8,3461.7,3.0]
[1719870180926,4.33275779,3461.8,3461.7,3.0]
[1719870181187,7.86293939,3461.8,3461.7,3.0]
[1719870183107,7.23637688,3461.8,3461.7,3.0]
[1719870184068,7.23651899,3461.8,3461.7,3.0]
[1719870184511,6.7365093,3461.8,3461.7,3.0]
[1719870184748,7.23655726,3461.8,3461.7,3.0]
[1719870187147,4.34793935,3461.8,3461.7,3.0]
[1719870187353,1.43621589,3461.8,3461.7,3.53708]
[1719870188512,0.93616791,3461.8,3461.7,3.53708]
[1719870190442,0.93612053,3461.8,3461.7,3.53708]
[1719870193785,0.30954831,3461.8,3461.7,3.53708]
[1719870194034,0.30967908,3461.8,3461.7,3.53708]
[1719870194215,0.93625168,3461.8,3461.7,3.53708]
[1719870197079,0.30967908,3461.8,3461.7,3.53708]
[1719870197232,2.88853,3462.0,3461.7,3.53708]
[1719870197233,0.62658991,3461.9,3461.7,3.53708]
[1719870197420,0.30967908,3461.8,3461.7,3.53708]
[1719870197639,0.62658705,3461.8,3461.7,3.53708]
[1719870197836,0.93626613,3461.8,3461.7,3.53708]
[1719870200245,0.30967908,3461.8,3461.7,3.53708]
[1719870200415,0.9362674,3461.8,3461.7,3.53708]
[1719870201054,0.9362674,3461.8,3461.7,5.84348]
[1719870201228,2.88829,3462.3,3462.1,3.0]
[1719870201229,2.88835,3462.2,3462.1,3.0]
[1719870201422,3.82461258,3462.2,3462.1,5.3064]
[1719870203057,0.93626258,3462.2,3462.1,5.3064]
[1719870203447,0.30967908,3462.2,3462.1,5.3064]
[1719870203651,0.62658087,3462.3,3462.1,5.3064]
[1719870203857,0.93625215,3462.2,3462.1,5.3064]
[1719870205540,0.30967128,3462.2,3462.1,5.3064]
[1719870205958,3.61611,3462.5,3462.1,5.3064]
[1719870206171,0.30971421,3462.2,3462.1,5.3064]
[1719870206675,3.61611,3462.5,3462.1,5.3064]
[1719870206845,0.30971421,3462.2,3462.1,5.3064]
[1719870207047,3.61611,3462.5,3462.1,5.3064]
[1719870207344,0.9363119,3462.4,3462.1,5.3064]
[1719870207563,0.62659769,3462.3,3462.1,5.3064]
[1719870208133,0.30971615,3462.2,3462.1,6.125898]
[1719870208329,0.728,3462.5,3462.1,6.125898]
[1719870208525,0.30971615,3462.2,3462.1,5.3064]
[1719870208761,0.728,3462.6,3462.1,5.3064]
[1719870208962,0.30971615,3462.2,3462.1,5.3064]
[1719870209257,2.88794,3462.7,3462.1,8.1948]
[1719870209457,1.12655543,3462.6,3462.1,11.08314]
[1719870209661,0.728,3462.7,3462.1,11.56610905]
[1719870209868,0.29949087,3462.5,3462.1,11.56610905]